fUSD/lending_fUSD_20251130
["ID","MTS","AMOUNT","RATE_DAILY","PERIOD"]
[395130841,1764461454876,-282.0,0.00039446,2]
[395130842,1764461454886,-436.25,0.0003945,2]
[395130843,1764461454895,-803.0,0.00039452,60]
[395130844,1764461454904,-500.0,0.00039452,60]
[395130845,1764461454914,-500.0,0.00039452,60]
[395130846,1764461454923,-500.0,0.00039452,60]
[395130847,1764461454932,-500.0,0.00039452,60]
[395130848,1764461454941,-500.0,0.00039452,60]
[395130849,1764461454951,-592.57,0.00039452,120]
[395130850,1764461454961,-282.0,0.00039482,2]
[395130851,1764461454970,-803.0,0.00039589,60]
[395130852,1764461454980,-550.44152871,0.00039589,60]
[395130853,1764461454989,-500.0,0.00039589,60]
[395130854,1764461454999,-500.0,0.00039589,60]
[395130855,1764461455008,-500.0,0.00039589,60]
[395130856,1764461455017,-282.0,0.00039617,2]
[395130857,1764461455027,-543.87,0.00039654,2]
[395130858,1764461455036,-282.0,0.00039698,2]
[395130859,1764461455046,-803.0,0.00039726,60]
[395130860,1764461455055,-500.0,0.00039726,60]
[395130861,1764461455065,-500.0,0.00039726,60]
[395130862,1764461455075,-500.0,0.00039726,60]
[395130863,1764461455085,-250.0,0.00039726,5]
[395130864,1764461455094,-152.0,0.00039742,7]
[395130865,1764461455104,-546.0,0.0003977,20]
[395130866,1764461455113,-282.0,0.00039831,2]
[395130867,1764461455133,-803.0,0.00039863,60]
[395130868,1764461455144,-500.0,0.00039863,60]
[395130869,1764461455154,-500.0,0.00039863,60]
[395130870,1764461455164,-500.0,0.00039863,60]
[395130871,1764461455173,-151.0,0.00039872,14]
[395130872,1764461455183,-479.66,0.00039874,2]
[395130873,1764461455192,-952.24,0.00039874,2]
[395130874,1764461455204,-472.26,0.00039874,2]
[395130875,1764461455215,-2000.0,0.00039882,120]
[395130876,1764461455225,-154.64552082,0.000399,120]
[395130877,1764461455235,-154.64552079,0.000399,120]
[395130878,1764461455245,-154.64552079,0.000399,120]
[395130879,1764461455254,-154.64552079,0.000399,120]
[395130880,1764461455264,-803.0,0.0004,60]
[395130881,1764461455274,-500.0,0.0004,60]
[395130882,1764461455284,-500.0,0.0004,60]
[395130883,1764461455294,-500.0,0.0004,60]
[395130884,1764461455304,-212.91,0.0004,30]
[395130885,1764461455314,-500.0,0.0004,120]
[395130886,1764461455324,-500.0,0.0004,120]
[395130887,1764461455334,-702.42,0.00040055,2]
[395130888,1764461455350,-702.42,0.00040055,2]
[395130889,1764461455360,-702.42,0.00040055,2]
[395130890,1764461455369,-702.42,0.00040055,2]
[395130891,1764461455379,-702.42,0.00040055,2]
[395130892,1764461455388,-702.42,0.00040055,2]
[395130893,1764461455398,-702.42,0.00040055,2]
[395130894,1764461455407,-282.0,0.00040057,2]
[395130895,1764461455417,-803.0,0.00040137,60]
[395130896,1764461455426,-500.0,0.00040137,60]
[395130897,1764461455436,-500.0,0.00040137,60]
[395130898,1764461455445,-500.0,0.00040137,60]
[395130899,1764461455455,-500.0,0.00040178,14]
[395130900,1764461455464,-546.0,0.0004018,20]
[395130901,1764461455474,-535.46,0.00040192,2]
[395130902,1764461455484,-418.03,0.00040192,2]
[395130903,1764461455494,-150.0,0.00040192,2]
[395130904,1764461455503,-150.0,0.00040192,2]
[395130905,1764461455512,-418.03,0.00040192,2]
[395130906,1764461455522,-592.57,0.00040273,120]
[395130907,1764461455531,-803.0,0.00040274,60]
[395130908,1764461455541,-598.23367489,0.00040274,60]
[395130909,1764461455550,-500.0,0.00040274,60]
[395130910,1764461455560,-500.0,0.00040274,60]
[395130911,1764461455569,-1133.0,0.00040283,2]
[395130912,1764461455579,-282.0,0.00040349,2]
[395130913,1764461455588,-606.94,0.000404,14]
[395130914,1764461455598,-803.0,0.00040411,60]
[395130915,1764461455608,-454.0,0.00040411,60]
[395130916,1764461455617,-500.0,0.00040411,60]
[395130917,1764461455627,-282.0,0.00040459,2]
[395130918,1764461455636,-200.0,0.00040546,2]
[395130919,1764461455646,-200.0,0.00040546,2]
[395130920,1764461455655,-200.0,0.00040546,2]
[395130921,1764461455665,-200.0,0.00040546,2]
[395130922,1764461455674,-200.0,0.00040546,2]
[395130923,1764461455683,-200.0,0.00040546,2]
[395130924,1764461455693,-200.0,0.00040546,2]
[395130925,1764461455703,-200.0,0.00040546,2]
[395130926,1764461455712,-200.0,0.00040546,2]
[395130927,1764461455721,-200.0,0.00040546,2]
[395130928,1764461455731,-200.0,0.00040546,2]
[395130929,1764461455744,-200.0,0.00040546,2]
[395130930,1764461455754,-200.0,0.00040546,2]
[395130931,1764461455763,-200.0,0.00040546,2]
[395130932,1764461455772,-200.0,0.00040546,2]
[395130933,1764461455781,-200.0,0.00040546,2]
[395130934,1764461455791,-200.0,0.00040546,2]
[395130935,1764461455800,-200.0,0.00040546,2]
[395130936,1764461455810,-200.0,0.00040546,2]
[395130937,1764461455819,-200.0,0.00040546,2]
[395130938,1764461455828,-200.0,0.00040546,2]
[395130939,1764461455838,-200.0,0.00040546,2]
[395130940,1764461455847,-200.0,0.00040546,2]
[395130941,1764461455857,-200.0,0.00040546,2]
[395130942,1764461455866,-200.0,0.00040546,2]
[395130943,1764461455875,-200.0,0.00040546,2]
[395130944,1764461455885,-200.0,0.00040546,2]
[395130945,1764461455894,-200.0,0.00040546,2]
[395130946,1764461455903,-200.0,0.00040546,2]
[395130947,1764461455912,-200.0,0.00040546,2]
[395130948,1764461455922,-200.0,0.00040546,2]
[395130949,1764461455933,-200.0,0.00040546,2]
[395130950,1764461455942,-200.0,0.00040546,2]
[395130951,1764461455952,-200.0,0.00040546,2]
[395130952,1764461455963,-200.0,0.00040546,2]
[395130953,1764461455981,-326.0,0.00040546,2]
[395130954,1764461455991,-803.0,0.00040548,60]
[395130955,1764461456000,-542.0,0.00040548,60]
[395130956,1764461456010,-303.06,0.00040557,2]
[395130957,1764461456019,-177.85,0.00040557,2]
[395130958,1764461456029,-169.97,0.00040557,2]
[395130959,1764461456038,-150.0,0.00040557,2]
[395130960,1764461456047,-472.95,0.00040557,2]
[395130961,1764461456056,-177.85,0.00040557,2]
[395130962,1764461456066,-150.0,0.00040557,2]
[395130963,1764461456075,-354.4,0.00040557,2]
[395130964,1764461456085,-150.0,0.00040557,2]
[395130965,1764461456094,-169.97,0.00040557,2]
[395130966,1764461456104,-1213.49,0.00040557,2]
[395130967,1764461456113,-177.85,0.00040578,2]
[395130968,1764461456123,-383.28,0.00040578,2]
[395130969,1764461456132,-355.7,0.00040578,2]
[395130970,1764461456141,-177.85,0.00040578,2]
[395130971,1764461456150,-2422.6,0.00040578,2]
[395130972,1764461456159,-194.47,0.00040578,2]
[395130973,1764461456169,-546.0,0.0004059,20]
[395130974,1764461456178,-282.0,0.00040615,2]
[395130975,1764461456187,-200.0,0.00040652,20]
[395130976,1764461456196,-200.0,0.00040657,20]
[395130977,1764461456209,-1444.0,0.00040658,120]
[395130978,1764461456218,-200.0,0.00040662,20]
[395130979,1764461456228,-200.0,0.00040667,20]
[395130980,1764461456237,-200.0,0.00040671,20]
[395130981,1764461456247,-803.0,0.00040685,60]
[395130982,1764461456256,-280.76,0.000407,120]
[395130983,1764461456265,-300.300713,0.00040751,102]
[395130984,1764461456274,-1000.0,0.00040789,14]
[395130985,1764461456284,-2000.0,0.00040795,3]
[395130986,1764461456293,-2000.0,0.00040795,3]
[395130987,1764461456305,-803.0,0.00040822,60]
[395130988,1764461456314,-479.66,0.00040828,2]
[395130989,1764461456324,-479.66,0.00040828,2]
[395130990,1764461456334,-479.66,0.00040828,2]
[395130991,1764461456343,-19183.56254634,0.00040832,2]
[395130992,1764461456354,-688.92,0.00040872,30]
[395130993,1764461456363,-474.84133514,0.000409,2]
[395130994,1764461456372,-2400.71688,0.000409,120]
[395130995,1764461456382,-940.31947038,0.000409,2]
[395130996,1764461456391,-353.931989,0.000409,20]
[395130997,1764461456400,-174.93132879,0.000409,28]
[395130998,1764461456409,-1322.3360951,0.000409,2]
[395130999,1764461456418,-440.3845114,0.000409,2]
[395131000,1764461456426,-183.59915168,0.000409,2]
[395131001,1764461456435,-203.0,0.0004093,30]
[395131002,1764461456445,-803.0,0.00040959,60]
[395131003,1764461456454,-500.0,0.00040959,61]
[395131004,1764461456463,-300.0,0.0004097,3]
[395131005,1764461456472,-300.0,0.0004097,3]
[395131006,1764461456481,-400.0,0.0004097,3]
[395131007,1764461456490,-400.0,0.0004097,3]
[395131008,1764461456499,-151.0,0.00040997,14]
[395131009,1764461456509,-152.0,0.00040997,8]
[395131010,1764461456518,-500.0,0.00040999,120]
[395131011,1764461456527,-500.0,0.00040999,120]
[395131012,1764461456535,-380.20532115,0.00041,31]
[395131013,1764461456544,-53989.08654594,0.00041,21]
[395131014,1764461456553,-448605.63376969,0.00041,2]
[395131015,1764461456631,-196.19745397,0.00015387,2]
[395131016,1764461456641,-435.30424332,0.0001551,2]
[395131017,1764461456650,-562.0,0.00026169,2]
[395131018,1764461456659,-710.04,0.000274,2]
[395131019,1764461456669,-710.04,0.000274,2]
[395131020,1764461456678,-2194259.76658439,0.00041,2]
[395131021,1764461458720,-1.7e-07,0.00041,2]
[395131023,1764461502909,-863.51004397,0.00013867,2]
[395131024,1764461506425,-362.90711755,0.00013867,2]
[395131025,1764461510259,-285.64950928,0.00013867,2]
[395131026,1764461512326,-301.05104951,0.00013867,2]
[395131027,1764461514628,-195.0,0.00013867,2]
[395131028,1764461517051,-300.0,0.00013867,2]
[395131029,1764461520594,-227.78732788,0.00013867,2]
[395131030,1764461522170,-151.30195181,0.00013867,2]
[395131031,1764461522193,-12.76044612,0.00013867,2]
[395131033,1764461539388,-171.62955388,0.00013867,2]
[395131034,1764461539413,-60.95564485,0.00013959,2]
[395131038,1764461582534,1049.49769684,0.00014149,5]
[395131040,1764461582584,1049.49769684,0.00014149,5]
[395131043,1764461583940,-134.04435515,0.00013959,2]
[395131044,1764461583962,-64.5379797,0.0001405,2]
[395131045,1764461586031,-245.47659243,0.0001405,2]
[395131046,1764461588651,-205.78294721,0.0001405,2]
[395131048,1764461591177,-398.50639112,0.0001405,2]
[395131049,1764461593208,-157.51062533,0.0001405,2]
[395131050,1764461595294,-300.0,0.0001405,2]
[395131051,1764461597403,-242.434925,0.0001405,2]
[395131075,1764461823869,-202.84926283,0.00013847,2]
[395131076,1764461826101,-186.36171461,0.00013847,2]
[395131181,1764462182482,-250.0,0.00013425,2]
[395131182,1764462182515,-200.0,0.00013459,2]
[395131183,1764462182550,-250.0,0.00013614,2]
[395131184,1764462182584,-631.0,0.00013698,2]
[395131185,1764462183069,-300.0,0.00013698,2]
[395131186,1764462183209,-6738.01,0.00013699,2]
[395131187,1764462188752,-242.434925,0.00013324,2]
[395131188,1764462188786,-250.0,0.00013442,2]
[395131189,1764462188820,-3830.75,0.00013699,2]
[395131190,1764462188854,-195.0,0.00013725,2]
[395131191,1764462188889,-227.26,0.00013821,2]
[395131192,1764462188922,-209.12015,0.00013827,2]
[395131193,1764462189039,-90.87985,0.00013827,2]
[395131195,1764462319371,3047.17942802,9e-05,2]
[395131196,1764462319395,2671.94247198,9e-05,2]
[395131197,1764462324929,1022.05984194,0.000108,2]
[395131209,1764462522907,150.0,0.00013123,2]
[395131210,1764462523103,150.0,0.00013123,120]
[395131223,1764462549438,195.0667191,7.945e-05,2]
[395131224,1764462549460,3956.2757939,7.945e-05,2]
[395131269,1764462605258,82.79323912,0.00013134,2]
[395131270,1764462605280,2479.57676088,0.00013134,2]
[395131306,1764462632853,-500.0,0.00013498,2]
[395131307,1764462632863,-250.0,0.00013599,2]
[395131308,1764462632872,-166.66,0.00013699,2]
[395131309,1764462632882,-200.0,0.00013699,2]
[395131310,1764462632893,-166.66,0.00013836,2]
[395131311,1764462632904,-300.0,0.00013846,2]
[395131312,1764462632917,-1200.0,0.00013846,2]
[395131313,1764462632928,-10752.55738706,0.00013847,2]
[395131314,1764462632956,-55.9316355,0.00013847,2]
[395131315,1764462632966,-150.0,0.00013948,2]
[395131316,1764462632975,-106.0683645,0.00013949,2]
[395131324,1764462638575,-296.1870031,0.00013949,2]
[395131325,1764462638585,-239.64449271,0.00013949,2]
[395131326,1764462638595,-500.0,0.00013949,2]
[395131327,1764462638604,-500.0,0.00013949,2]
[395131328,1764462638613,-500.0,0.00013949,2]
[395131329,1764462638622,-500.0,0.00013949,2]
[395131330,1764462638631,-500.0,0.00013949,2]
[395131331,1764462638640,-500.0,0.00013949,2]
[395131333,1764462638649,-500.0,0.00013949,2]
[395131334,1764462638659,-500.0,0.00013949,2]
[395131335,1764462638668,-500.0,0.00013949,2]
[395131336,1764462638677,-500.0,0.00013949,2]
[395131337,1764462638686,-500.0,0.00013949,2]
[395131338,1764462638695,-500.0,0.00013949,2]
[395131339,1764462638704,-204.8472747,0.00013949,2]
[395131341,1764462638713,-500.0,0.00013949,2]
[395131343,1764462638723,-500.0,0.00013949,2]
[395131344,1764462638732,-500.0,0.00013949,2]
[395131345,1764462638741,-500.0,0.00013949,2]
[395131346,1764462638750,-500.0,0.00013949,2]
[395131347,1764462638759,-500.0,0.00013949,2]
[395131348,1764462638768,-500.0,0.00013949,2]
[395131349,1764462638777,-500.0,0.00013949,2]
[395131350,1764462638787,-500.0,0.00013949,2]
[395131351,1764462638796,-500.0,0.00013949,2]
[395131352,1764462638805,-500.0,0.00013949,2]
[395131353,1764462638815,-500.0,0.00013949,2]
[395131354,1764462638825,-500.0,0.00013949,2]
[395131355,1764462638836,-500.0,0.00013949,2]
[395131356,1764462638846,-500.0,0.00013949,2]
[395131357,1764462638855,-500.0,0.00013949,2]
[395131358,1764462638865,-500.0,0.00013949,2]
[395131359,1764462638874,-500.0,0.00013949,2]
[395131360,1764462638884,-500.0,0.00013949,2]
[395131361,1764462638894,-500.0,0.00013949,2]
[395131362,1764462638903,-500.0,0.00013949,2]
[395131363,1764462638913,-500.0,0.00013949,2]
[395131364,1764462638922,-500.0,0.00013949,2]
[395131365,1764462638931,-500.0,0.00013949,2]
[395131366,1764462638940,-500.0,0.00013949,2]
[395131367,1764462638949,-500.0,0.00013949,2]
[395131368,1764462638959,-500.0,0.00013949,2]
[395131369,1764462638968,-500.0,0.00013949,2]
[395131370,1764462638977,-760000.0,0.0001395,2]
[395131371,1764462638987,-1600.0,0.00013961,2]
[395131372,1764462638996,-150.0,0.00013961,2]
[395131373,1764462639006,-166.66,0.00013973,2]
[395131374,1764462639015,-2500.0,0.00014042,2]
[395131375,1764462639024,-5354.20806546,0.00014042,2]
[395131376,1764462639034,-2821.567,0.00014047,2]
[395131377,1764462639043,-184.39,0.00014047,2]
[395131378,1764462639052,-694.34734342,0.0001405,2]
[395131379,1764462639061,-33394.88,0.0001405,2]
[395131380,1764462639070,-368.0,0.00014094,2]
[395131381,1764462639080,-166.66,0.0001411,2]
[395131382,1764462639089,-702.0,0.0001412,2]
[395131383,1764462639097,-1453.0,0.00014132,2]
[395131384,1764462639107,-113674.39,0.00014142,2]
[395131385,1764462639116,-25003.89,0.00014142,2]
[395131386,1764462639125,-9999.99,0.00014142,2]
[395131387,1764462639134,-1114.06,0.00014142,2]
[395131388,1764462639143,-150.99,0.00014142,2]
[395131389,1764462639152,-510.37,0.00014142,2]
[395131390,1764462639161,-299.99,0.00014142,2]
[395131391,1764462639170,-151.0,0.00014142,2]
[395131392,1764462639179,-151.0,0.00014142,2]
[395131393,1764462639188,-151.0,0.00014142,2]
[395131394,1764462639197,-151.0,0.00014142,2]
[395131395,1764462639206,-151.0,0.00014142,2]
[395131396,1764462639217,-151.0,0.00014142,2]
[395131397,1764462639226,-151.0,0.00014142,2]
[395131398,1764462639236,-151.0,0.00014142,2]
[395131399,1764462639245,-151.0,0.00014142,2]
[395131400,1764462639254,-151.0,0.00014142,2]
[395131401,1764462639263,-151.0,0.00014142,2]
[395131402,1764462639272,-151.0,0.00014142,2]
[395131403,1764462639281,-151.0,0.00014142,2]
[395131404,1764462639291,-151.0,0.00014142,2]
[395131405,1764462639301,-151.0,0.00014142,2]
[395131406,1764462639310,-151.0,0.00014142,2]
[395131407,1764462639319,-151.0,0.00014142,2]
[395131408,1764462639328,-151.0,0.00014142,2]
[395131409,1764462639337,-151.0,0.00014142,2]
[395131410,1764462639346,-151.0,0.00014142,2]
[395131411,1764462639355,-926.68,0.00014148,2]
[395131412,1764462639364,-500.0,0.00014149,2]
[395131413,1764462639373,-332.62709138,0.00014149,2]
[395131414,1764462639382,-500.0,0.00014149,2]
[395131415,1764462639391,-500.0,0.00014149,2]
[395131416,1764462639400,-500.0,0.00014149,2]
[395131417,1764462639409,-500.0,0.00014149,2]
[395131418,1764462639418,-500.0,0.00014149,2]
[395131419,1764462639427,-510.74534266,0.00014149,2]
[395131420,1764462639436,-500.0,0.00014149,2]
[395131421,1764462639445,-500.0,0.00014149,2]
[395131422,1764462639454,-500.0,0.00014149,2]
[395131423,1764462639463,-500.0,0.00014149,2]
[395131424,1764462639472,-607.692763,0.00014149,2]
[395131425,1764462639480,-500.0,0.00014149,2]
[395131426,1764462639489,-500.0,0.00014149,2]
[395131427,1764462639821,-500.0,0.00014149,2]
[395131428,1764462639834,-500.0,0.00014149,2]
[395131429,1764462639846,-591.31867425,0.00014149,2]
[395131430,1764462639855,-500.0,0.00014149,2]
[395131431,1764462639864,-630.9506587,0.00014149,2]
[395131432,1764462639873,-500.0,0.00014149,2]
[395131433,1764462639883,-500.0,0.00014149,2]
[395131434,1764462639892,-500.0,0.00014149,2]
[395131435,1764462639901,-500.0,0.00014149,2]
[395131436,1764462639911,-500.0,0.00014149,2]
[395131437,1764462639920,-500.0,0.00014149,2]
[395131438,1764462639930,-500.0,0.00014149,2]
[395131439,1764462639939,-160.38066801,0.00014149,2]
[395131440,1764462639948,-500.0,0.00014149,2]
[395131441,1764462639959,-500.0,0.00014149,2]
[395131442,1764462639968,-500.0,0.00014149,2]
[395131443,1764462639977,-500.0,0.00014149,2]
[395131444,1764462639986,-500.0,0.00014149,2]
[395131445,1764462639995,-500.0,0.00014149,2]
[395131446,1764462640004,-500.0,0.00014149,2]
[395131447,1764462640014,-150.0,0.0001415,2]
[395131448,1764462640025,-600.0,0.0001415,2]
[395131449,1764462640034,-6214.9,0.0001415,2]
[395131450,1764462640045,-1421.94,0.0001415,2]
[395131451,1764462640055,-7704.66,0.0001415,2]
[395131452,1764462640065,-999.99,0.0001415,2]
[395131453,1764462640076,-422.71,0.0001415,2]
[395131454,1764462640085,-2954.1,0.0001415,2]
[395131455,1764462640095,-499.99,0.0001415,2]
[395131456,1764462640105,-4993.69,0.0001415,2]
[395131457,1764462640115,-7091.63,0.0001415,2]
[395131458,1764462640125,-9999.99,0.0001415,2]
[395131459,1764462640135,-1539.04,0.0001415,2]
[395131460,1764462640145,-150.99,0.0001415,2]
[395131461,1764462640154,-1526.34,0.0001415,2]
[395131462,1764462640165,-1449.0,0.0001416,2]
[395131463,1764462640174,-166.66,0.00014247,2]
[395131464,1764462640185,-500.0,0.00014248,2]
[395131465,1764462640196,-154.18165703,0.00014248,2]
[395131466,1764462640207,-500.0,0.00014248,2]
[395131467,1764462640222,-11476.6,0.00014273,2]
[395131469,1764462640232,-1000.0,0.00014283,2]
[395131471,1764462640242,-22745.53,0.00014304,2]
[395131472,1764462640252,-5354.20806544,0.0001436,2]
[395131473,1764462640263,-166.66,0.00014384,2]
[395131474,1764462640272,-206.36745172,0.00014402,2]
[395131475,1764462640282,-926.68,0.00014422,2]
[395131476,1764462640291,-600.0,0.00014424,2]
[395131477,1764462640302,-579.22971903,0.00014457,2]
[395131478,1764462640311,-227.26,0.00014589,2]
[395131479,1764462640321,-26340.48315351,0.000146,2]
[395131480,1764462640330,-5354.20806544,0.00014677,2]
[395131481,1764462640340,-926.68,0.00014696,2]
[395131482,1764462640350,-531.97,0.00014698,2]
[395131483,1764462640359,-500.0,0.0001476,2]
[395131484,1764462640369,-500.0,0.0001476,2]
[395131485,1764462640378,-195.0,0.00014848,2]
[395131486,1764462640388,-250.0,0.00014848,2]
[395131487,1764462640397,-195.0,0.00014848,2]
[395131488,1764462640407,-250.0,0.00014848,2]
[395131489,1764462640416,-195.0,0.00014848,2]
[395131490,1764462640425,-220.47585405,0.00014858,2]
[395131491,1764462640434,-579.22971903,0.00014864,2]
[395131492,1764462640444,-100584.77532412,0.00014868,2]
[395131493,1764462640455,-926.68,0.0001497,2]
[395131494,1764462640467,-5000.0,0.00014984,2]
[395131495,1764462640477,-5000.0,0.00014984,2]
[395131496,1764462640486,-5354.20806544,0.00014995,2]
[395131497,1764462640495,-151.0,0.00014997,2]
[395131498,1764462640504,-269487.55322711,0.00015,4]
[395131499,1764462640513,-12029.21578807,0.00015,2]
[395131500,1764462640522,-255.0,0.00015064,2]
[395131501,1764462640531,-3313.0,0.00015068,2]
[395131502,1764462640541,-420.0,0.00015171,2]
[395131503,1764462640551,-1680.0,0.0001523,2]
[395131504,1764462640560,-926.68,0.00015244,2]
[395131505,1764462640569,-579.22971903,0.00015271,2]
[395131506,1764462640578,-5354.20806544,0.00015312,2]
[395131507,1764462640587,-227.26,0.00015357,2]
[395131508,1764462640597,-926.68,0.00015518,2]
[395131509,1764462640606,-5354.20806544,0.0001563,2]
[395131510,1764462640615,-579.22971903,0.00015679,2]
[395131511,1764462640624,-1600.0,0.00015706,2]
[395131512,1764462640633,-926.68,0.00015792,2]
[395131513,1764462640643,-370.92737212,0.00015857,2]
[395131514,1764462640653,-5354.20806544,0.00015947,2]
[395131515,1764462640662,-500.0,0.0001595,2]
[395131516,1764462640672,-500.0,0.0001595,2]
[395131517,1764462640681,-504.164248,0.00015973,2]
[395131518,1764462640690,-500.0,0.00015973,2]
[395131519,1764462640700,-500.0,0.00015973,2]
[395131520,1764462640708,-500.0,0.00015973,2]
[395131521,1764462640719,-176.16235425,0.00015973,2]
[395131522,1764462640728,-500.0,0.00015973,2]
[395131523,1764462640737,-500.0,0.00015973,2]
[395131524,1764462640746,-500.0,0.00015973,2]
[395131525,1764462640755,-165.0616945,0.00015973,2]
[395131526,1764462640764,-500.0,0.00015973,2]
[395131527,1764462640774,-159.99691032,0.00015973,2]
[395131528,1764462640782,-500.0,0.00015973,2]
[395131529,1764462640791,-500.0,0.00015973,2]
[395131530,1764462640800,-500.0,0.00015973,2]
[395131531,1764462640809,-500.0,0.00015973,2]
[395131532,1764462640818,-500.0,0.00015973,2]
[395131533,1764462640828,-201.08259325,0.00015973,2]
[395131534,1764462640840,-23662.03648702,0.00016,2]
[395131535,1764462640849,-80196.52801918,0.00016,2]
[395131536,1764462640858,-210821.03793759,0.00016,4]
[395131537,1764462640868,-926.68,0.00016066,2]
[395131538,1764462640877,-579.22971903,0.00016086,2]
[395131539,1764462640887,-4130.57,0.00016116,2]
[395131540,1764462640897,-8159.14,0.00016116,2]
[395131541,1764462640906,-227.26,0.00016125,2]
[395131542,1764462640916,-20259.69151584,0.000162,5]
[395131543,1764462640925,-433.0,0.00016264,2]
[395131544,1764462640934,-5354.20806544,0.00016265,2]
[395131545,1764462640945,-164.30916299,0.00016273,2]
[395131546,1764462640955,-500.0,0.00016288,2]
[395131547,1764462640964,-500.0,0.00016288,2]
[395131548,1764462640973,-926.68,0.0001634,2]
[395131549,1764462640982,-200.0,0.0001634,2]
[395131550,1764462640991,-150.0,0.00016438,2]
[395131552,1764462641000,-500.0,0.00016438,2]
[395131553,1764462641010,-422.17614616,0.00016438,2]
[395131555,1764462641019,-500.0,0.00016438,2]
[395131556,1764462641028,-500.0,0.00016438,2]
[395131558,1764462641037,-500.0,0.00016438,2]
[395131560,1764462641047,-500.0,0.00016438,2]
[395131562,1764462641056,-500.0,0.00016438,2]
[395131563,1764462641066,-665.43045807,0.0001647,2]
[395131565,1764462641075,-579.22971903,0.00016493,2]
[395131567,1764462641084,-500.0,0.00016519,2]
[395131569,1764462641093,-500.0,0.0001652,2]
[395131571,1764462641103,-531.25007732,0.0001652,2]
[395131572,1764462641112,-500.0,0.0001652,2]
[395131573,1764462641121,-500.0,0.0001652,2]
[395131574,1764462641130,-1000.0,0.00016521,2]
[395131575,1764462641140,-1000.0,0.00016521,2]
[395131576,1764462641149,-1000.0,0.00016521,2]
[395131577,1764462641158,-1000.0,0.00016521,2]
[395131578,1764462641168,-1000.0,0.00016521,2]
[395131579,1764462641177,-1000.0,0.00016521,2]
[395131580,1764462641186,-1000.0,0.00016521,2]
[395131581,1764462641195,-1000.0,0.00016521,2]
[395131582,1764462641205,-1000.0,0.00016521,2]
[395131583,1764462641215,-360.05947122,0.00016521,2]
[395131584,1764462641224,-509.84757523,0.00016521,2]
[395131585,1764462641233,-1000.0,0.00016521,2]
[395131586,1764462641242,-150.0,0.00016575,2]
[395131587,1764462641251,-5354.20806544,0.00016582,2]
[395131588,1764462641261,-926.68,0.00016614,2]
[395131589,1764462641271,-587.0,0.00016623,2]
[395131590,1764462641283,-178.73243855,0.00016712,2]
[395131591,1764462641293,-222.61,0.00016712,2]
[395131592,1764462641303,-219.11494716,0.0001672,2]
[395131593,1764462641314,-2351.0,0.00016753,2]
[395131594,1764462641323,-926.68,0.00016888,2]
[395131595,1764462641333,-227.26,0.00016893,2]
[395131596,1764462641343,-10000.0,0.000169,2]
[395131597,1764462641352,-5354.20806544,0.000169,2]
[395131598,1764462641363,-579.22971903,0.000169,2]
[395131599,1764462641373,-880.7690228,0.000169,2]
[395131600,1764462641384,-367.19830336,0.000169,2]